{"text_format":"1","workbook":"xlsx","n_sheets":1,"sheets":["EF Group - Finance Quote Sheet"],"not_rendered":{"charts":0,"images":1,"macros":1,"external_links":0,"defined_names":1,"comments":0,"pivot_tables":0},"unopened":[],"bounds":{"document_bytes":16777216,"sheet_cells":100000,"rows_first":2000,"rows_last":500,"rows_between":2000,"halvings":0,"cell_chars":16384,"cell_head_chars":4096},"cells_cut":0,"cells_raw":0,"read":"whole","date_system":"1900"}

{"sheet":"EF Group - Finance Quote Sheet","index":0,"n_rows":41,"n_cols":30,"rows_kept":41,"cut":false,"hidden":false,"merged":[[3,21,14,25],[18,21,18,25]]}
[]
[]
[null,null,null,null,null,null,null,"Lease Payment Proposal"]
[null,null,null,null,null,null,null,null,null,null,null,null,null,null,null,null,null,null,null,null,null,"Logistical Test"]
[null,null,null,null,null,null,null," "]
[]
[null,null,null,null,null,"Quote Provided for:",null," "]
[]
[null,null,null,null,null,"Quote Date:"]
[null,null,null,null,null,null,null,null,null,null,null,null,null,null,null,null,null,null," "]
[null,null,null,null,null,"Sales Rep:"]
[]
[null,null,null,null,null,"System Description:"]
[]
[null,null,null,null,null,"System Cost:",null,0]
[null,null,null,null,null,null,null,null,null,null,null,null,null,null,null,null,null,null,null,null,null,"Loan Amount","< = $50,000","> $50,000 - < $100,000","> =  $100,000","Total"]
[]
[null,null,null,null,null,"No Upfront Payment *",null,null,null,null,null,"1st & Last Upfront Payment ¥",null,null,null,null,null,null,null,null,null,null,{"$f":"IF(#REF!<=49999,1,0)","v":{"$error":"#REF!"}},{"$f":"IF(#REF!>=50000,2,0)","v":{"$error":"#REF!"}},{"$f":"IF(#REF!>=100000,1,0)","v":{"$error":"#REF!"}},{"$f":"SUM(W18:Y18)","v":{"$error":"#REF!"}}]
[null,null,null,null,null,"ELA Financed Amount",null,{"$f":"$H$15+AD26","v":350},null,null,null,"ELA Financed Amount",null,{"$f":"H15","v":0},null,null,null,null,null,null,null,"Rate Chart"]
[null,null,null,null,null,"Out of Pocket at Closing",null,0,null,null,null,"Out of Pocket at Closing",null,{"$f":"AD26","v":350}]
[null,null,null,null,null,"24 monthly payments",null,{"$f":"PMT(Z26/12,V26,H19)*-1","v":21.795490591102382},null,null,null,"24 monthly payments",null,{"$f":"AC26","v":0}]
[]
[null,null,null,null,null,"ELA Financed Amount",null,{"$f":"$H$15+AD27","v":350},null,null,null,"ELA Financed Amount",null,{"$f":"H15","v":0}]
[null,null,null,null,null,"Out of Pocket at Closing",null,0,null,null,null,"Out of Pocket at Closing",null,{"$f":"AD27","v":350},null,null,null,null,null,null,null,"Term","Rate 1","Rate 2","Add to Cost","Rate Used"]
[null,null,null,null,null,"36 monthly payments",null,{"$f":"PMT(Z27/12,V27,H23)*-1","v":15.832614462619073},null,null,null,"36 monthly payments",null,{"$f":"AC27","v":0},null,null,null,null,null,null,null,null,null,null,null,null,"Doc Prep","UCC","Base Payment before Fees","1st Invoice Total"]
[null,null,null,null,null,null,null,null,null,null,null,null,null,null,null,null,null,null,null,null,null,24,{"$f":"IF(Z17=1,0.095,\"\")","v":""},0.1575,0.11,0.42,200,150,{"$f":"-PMT(Z26/12,V26,$H$15,,0)","v":0},{"$f":"AC26*2+SUM(AA26:AB26)","v":350}]
[null,null,null,null,null,"ELA Financed Amount",null,{"$f":"$H$15+AD28","v":350},null,null,null,"ELA Financed Amount",null,{"$f":"H15","v":0},null,null,null,null,null,null,null,36,{"$f":"IF(Z18=1,0.095,\"\")","v":{"$error":"#REF!"}},0.1575,0.11,0.35,200,150,{"$f":"-PMT(Z27/12,V27,$H$15,,0)","v":0},{"$f":"AC27*2+SUM(AA27:AB27)","v":350}]
[null,null,null,null,null,"Out of Pocket at Closing",null,0,null,null,null,"Out of Pocket at Closing",null,{"$f":"AD28","v":350},null,null,null,null,null,null,null,48,{"$f":"IF(Z18=1,0.085,\"\")","v":{"$error":"#REF!"}},0.1575,9.35E-2,0.28999999999999998,200,150,{"$f":"-PMT(Z28/12,V28,$H$15,,0)","v":0},{"$f":"AC28*2+SUM(AA28:AB28)","v":350}]
[null,null,null,null,null,"48 monthly payments",null,{"$f":"PMT(Z28/12,V28,H27)*-1","v":12.39935105559881},null,null,null,"48 monthly payments",null,{"$f":"AC28","v":0},null,null,null,null,null,null,null,60,{"$f":"IF(Z18=1,0.075,\"\")","v":{"$error":"#REF!"}},0.1575,8.2000000000000003E-2,0.24,200,150,{"$f":"-PMT(Z29/12,V29,$H$15,,0)","v":0},{"$f":"AC29*2+SUM(AA29:AB29)","v":350}]
[null,null,null,null,null,null,null,null,null,null,null,null,null,null,null,null,null,null,null,null,null,null,null,null,null,null,null,null,null," "]
[null,null,null,null,null,"ELA Financed Amount",null,{"$f":"$H$15+AD29","v":350},null,null,null,"ELA Financed Amount",null,{"$f":"H15","v":0}]
[null,null,null,null,null,"Out of Pocket at Closing",null,0,null,null,null,"Out of Pocket at Closing",null,{"$f":"AD29","v":350}]
[null,null,null,null,null,"60 monthly payments",null,{"$f":"PMT(Z29/12,V29,H31)*-1","v":10.068788039032217},null,null,null,"60 monthly payments",null,{"$f":"AC29","v":0}]
[]
[]
[null,null,null,null,null,"*Quote includes 1st & Last payment, doc prep & UCC filing fees held from proceeds. Customer has no out of pocket expense at closing"]
[null,null,null,null,null,"¥Quote includes doc prep & UCC filing fees within 1st invoice"]
[]
[null,null,null,null,null,"- All quotes are subject to credit approval and receipt of required documents"]
[null,null,null,null,null,"- Lease proposal is to be used for estimation purposes"]
[null,null,null,null,null,"- Pricing are subject to change"]